bitfinex-derivatives/quotes_BTCF0:USTF0_20241221
["timestamp","ask_amount","ask_price","bid_price","bid_amount"]
[1734811624563,0.051287,97534.0,97529.0,0.051289]
[1734811625459,0.051287,97534.0,97527.0,0.3618]
[1734811625865,0.051287,97534.0,97529.0,0.001]
[1734811626162,0.0558,97539.0,97530.0,0.051289]
[1734811626353,0.0558,97539.0,97538.0,0.3608]
[1734811626354,0.107084,97539.0,97538.0,0.3608]
[1734811627348,0.0558,97539.0,97538.0,0.3608]
[1734811628563,0.0558,97539.0,97538.0,0.3618]
[1734811630260,0.00820382,97555.0,97548.0,0.051279]
[1734811630566,0.00820382,97555.0,97538.0,0.3618]
[1734811630567,0.11100382,97567.0,97554.0,0.3608]
[1734811630762,0.1028,97567.0,97566.0,0.3608]
[1734811631465,0.0512,97567.0,97566.0,0.3608]
[1734811631666,0.18254759,97587.0,97566.0,0.3608]
[1734811631967,0.18254759,97587.0,97586.0,0.3608]
[1734811632265,0.18254759,97587.0,97586.0,0.772859]
[1734811632468,0.18254759,97587.0,97586.0,0.89015308]
[1734811632956,0.051251,97602.0,97586.0,0.772859]
[1734811633161,0.051251,97602.0,97599.0,0.3608]
[1734811633359,0.051246,97613.0,97599.0,0.3608]
[1734811634267,0.18254759,97619.0,97599.0,0.47455849]
[1734811634661,0.0526,97638.0,97618.0,0.3608]
[1734811634859,0.05124,97624.0,97618.0,0.3608]
[1734811635057,0.23365108,97630.0,97618.0,0.3608]
[1734811635260,0.051244,97616.0,97603.0,0.3608]
[1734811635572,0.051249,97606.0,97603.0,0.3608]
[1734811635870,0.051256,97594.0,97592.0,0.3608]
[1734811636071,0.00140159,97605.0,97574.0,0.3608]
[1734811636072,0.051265,97576.0,97574.0,0.3608]
[1734811636564,0.1035,97575.0,97574.0,0.3608]
[1734811636764,0.00140159,97575.0,97574.0,0.412066]
[1734811636967,0.00140159,97575.0,97574.0,0.42240009]
[1734811637267,0.1035,97598.0,97583.0,0.051261]
[1734811637469,0.1035,97598.0,97597.0,0.3608]
[1734811639072,0.1035,97598.0,97597.0,0.3618]
[1734811639366,0.1035,97598.0,97597.0,0.3608]
[1734811640171,0.0526,97598.0,97597.0,0.3608]
[1734811641058,0.0539,97609.0,97597.0,0.3618]
[1734811641570,0.0539,97609.0,97608.0,0.3608]
[1734811642367,0.0529,97614.0,97610.0,0.051247]
[1734811642666,0.0529,97614.0,97608.0,0.3608]
[1734811643461,0.3608,97609.0,97588.0,0.3608]
[1734811643663,0.051255,97594.0,97590.0,0.3608]
[1734811643862,0.0503,97593.0,97590.0,0.3608]
[1734811644672,0.0549,97603.0,97590.0,0.3608]
[1734811644876,0.0549,97603.0,97598.0,0.412053]
[1734811645567,0.0549,97603.0,97598.0,0.3608]
[1734811646371,0.106151,97603.0,97598.0,0.3608]
[1734811646965,0.0549,97611.0,97599.0,0.051253]
[1734811647269,0.0549,97611.0,97598.0,0.3618]
[1734811647475,0.051248,97607.0,97598.0,0.3608]
[1734811647974,0.051249,97606.0,97598.0,0.3608]
[1734811648165,0.051249,97606.0,97599.0,0.001]
[1734811648672,0.24185033,97610.0,97599.0,0.001]
[1734811648971,0.051262,97581.0,97580.0,0.3608]
[1734811649175,0.23365108,97590.0,97566.0,0.3608]
[1734811649375,0.33795108,97580.0,97566.0,0.3608]
[1734811649578,0.051266,97574.0,97566.0,0.3608]
[1734811649767,0.00140183,97570.0,97566.0,0.3608]
[1734811650488,0.051269,97568.0,97566.0,0.3608]
[1734811650970,0.00140183,97567.0,97566.0,0.3678]
[1734811651671,0.00965105,97567.0,97566.0,0.3608]
[1734811652079,0.00140183,97567.0,97566.0,0.3608]
[1734811652275,0.00965105,97567.0,97566.0,0.3608]
[1734811652477,0.00965757,97567.0,97566.0,0.3608]
[1734811652981,0.00965757,97567.0,97566.0,0.3618]
[1734811653577,0.00965757,97567.0,97566.0,0.3608]
[1734811654580,0.01102762,97567.0,97566.0,0.3608]
[1734811655773,0.01105824,97567.0,97566.0,0.3608]
[1734811656969,0.01107791,97567.0,97566.0,0.3608]
[1734811658180,0.01107213,97567.0,97566.0,0.3608]
[1734811660080,0.01107213,97567.0,97555.0,0.3608]
[1734811660284,0.051275,97556.0,97555.0,0.3608]
[1734811660488,0.00826963,97556.0,97555.0,0.412076]
[1734811660686,0.01107213,97556.0,97555.0,0.412076]
[1734811661283,0.01107213,97556.0,97555.0,0.41348107]
[1734811661868,0.01107213,97556.0,97555.0,0.41448107]
[1734811662586,0.01107855,97556.0,97555.0,0.41648107]
[1734811662898,0.01107855,97556.0,97555.0,0.42148107]
[1734811663383,0.01107855,97556.0,97555.0,0.41648107]
[1734811663584,0.01107855,97556.0,97555.0,0.41848107]
[1734811663883,0.0028025,97556.0,97555.0,0.41848107]
[1734811664087,0.0028025,97556.0,97555.0,0.41748107]
[1734811664883,0.0028025,97556.0,97555.0,0.41848107]
[1734811666279,0.0028025,97556.0,97555.0,0.41748107]
[1734811667883,0.0028025,97556.0,97555.0,0.41884948]
[1734811668685,0.0028025,97556.0,97555.0,0.41684948]
[1734811669794,0.0028025,97556.0,97555.0,0.41484948]
[1734811671278,0.01108805,97556.0,97555.0,0.41484948]
[1734811674585,0.01108805,97556.0,97555.0,0.412076]
[1734811674793,0.01112459,97556.0,97555.0,0.41625288]
[1734811675486,0.01113166,97556.0,97555.0,0.41625288]
[1734811678398,0.01113166,97556.0,97555.0,0.41725288]
[1734811679096,0.01113166,97556.0,97555.0,0.41625288]
[1734811679793,0.01113166,97556.0,97555.0,0.41725288]
[1734811680388,0.0111682,97556.0,97555.0,0.41765628]
[1734811682196,0.0111682,97556.0,97555.0,0.41865628]
[1734811683094,0.01118387,97556.0,97555.0,0.41865628]
[1734811683593,0.01118369,97556.0,97555.0,0.41865628]
[1734811683994,0.01118369,97556.0,97555.0,0.00658028]
[1734811684301,0.01118369,97556.0,97547.0,0.18166895]
[1734811684502,0.051279,97548.0,97547.0,0.18166895]
[1734811684691,0.05958711,97548.0,97547.0,0.18166895]
[1734811685411,0.06246269,97548.0,97547.0,0.09696895]
[1734811685596,0.06246269,97548.0,97533.0,0.00011771]
[1734811685597,0.051281,97545.0,97540.0,0.18167379]
[1734811685798,0.051283,97541.0,97540.0,0.18167379]
[1734811686001,0.05959111,97541.0,97540.0,0.18307738]
[1734811686696,0.05959111,97541.0,97540.0,0.09837738]
[1734811686897,0.06386896,97541.0,97540.0,0.09837738]
[1734811687297,0.11373633,97541.0,97540.0,0.00140359]
[1734811687695,0.11373633,97541.0,97540.0,0.00240359]
[1734811688206,0.10542822,97541.0,97540.0,0.00240359]
[1734811688403,0.06242404,97541.0,97535.0,0.3608]
[1734811688704,0.051286,97536.0,97535.0,0.3608]
[1734811688898,0.42464267,97536.0,97523.0,0.3608]
[1734811689098,0.051296,97517.0,97510.0,0.0541]
[1734811689299,0.3608,97524.0,97512.0,0.06520103]
[1734811689300,0.051296,97516.0,97512.0,0.06520103]
[1734811689892,0.0083842,97515.0,97512.0,0.06520103]
[1734811690090,0.00427785,97514.0,97512.0,0.06520103]
[1734811690294,0.00427785,97514.0,97512.0,0.11649903]
[1734811690500,0.3608,97566.0,97522.0,0.051293]
[1734811690800,0.051273,97561.0,97536.0,0.3608]
[1734811691003,0.3608,97566.0,97542.0,0.051283]
[1734811691301,0.3608,97566.0,97562.0,0.051272]
[1734811691702,0.3608,97566.0,97551.0,0.3608]
[1734811691908,0.41207,97566.0,97564.0,0.00136851]
[1734811692700,0.21497576,97574.0,97572.0,0.051267]
[1734811692919,0.21497576,97574.0,97573.0,0.3608]
[1734811693100,0.051261,97583.0,97573.0,0.3622035]
[1734811693612,0.051262,97582.0,97573.0,0.3622035]
[1734811693999,0.051262,97582.0,97577.0,0.0014035]
[1734811694601,0.051257,97591.0,97579.0,0.051263]
[1734811694904,0.051232,97638.0,97597.0,0.051253]
[1734811694905,0.051248,97609.0,97597.0,0.051253]
[1734811695106,0.0541,97610.0,97603.0,0.0526535]
[1734811695298,0.412043,97617.0,97603.0,0.0014035]
[1734811695494,0.3608,97617.0,97608.0,0.051247]
[1734811695810,0.3608,97617.0,97611.0,0.051246]
[1734811696108,0.34456,97626.0,97616.0,0.051244]
[1734811696296,0.34456,97626.0,97616.0,0.20261497]
[1734811696496,0.0537,97638.0,97616.0,0.20261497]
[1734811696497,0.0537,97638.0,97621.0,0.051241]
[1734811696707,0.0537,97638.0,97622.0,0.05124]
[1734811697302,0.051232,97639.0,97625.0,0.0014035]
[1734811697499,0.3608,97641.0,97625.0,0.0014035]
[1734811697803,0.051233,97637.0,97625.0,0.0014035]
[1734811698208,0.051233,97637.0,97626.0,0.0014035]
[1734811698504,0.00139991,97627.0,97616.0,0.01149148]
[1734811698711,0.0101781,97639.0,97627.0,0.00137261]
[1734811698909,0.6608,97628.0,97627.0,0.00137261]
[1734811699111,0.3608,97628.0,97596.0,0.051254]
[1734811699407,0.3608,97618.0,97596.0,0.051254]
[1734811699606,0.051245,97615.0,97596.0,0.051254]
[1734811699809,0.3608,97610.0,97591.0,0.3608]
[1734811699998,0.05125,97605.0,97591.0,0.3608]
[1734811700413,0.051251,97603.0,97587.0,0.051259]
[1734811700810,0.3608,97610.0,97590.0,0.28431353]
[1734811701007,0.3608,97602.0,97590.0,0.28431353]
[1734811701209,0.3608,97602.0,97590.0,0.051257]
[1734811701502,0.3608,97605.0,97588.0,0.051258]
[1734811702712,0.3608,97605.0,97588.0,0.055258]
[1734811703207,0.3608,97605.0,97589.0,0.051257]
[1734811703710,0.0562,97612.0,97589.0,0.051257]
[1734811703903,0.107446,97612.0,97589.0,0.051257]
[1734811704103,0.0562,97612.0,97590.0,0.051257]
[1734811704303,0.3608,97613.0,97603.0,0.05125]
[1734811704815,0.0532,97625.0,97608.0,0.3608]
[1734811705514,0.05124,97623.0,97609.0,0.051247]
[1734811705904,0.41204,97623.0,97609.0,0.051247]
[1734811707307,0.3608,97623.0,97615.0,0.051244]
[1734811708705,0.3608,97623.0,97609.0,0.051247]
[1734811708904,0.3608,97623.0,97610.0,0.051246]
[1734811709115,0.3608,97623.0,97608.0,0.37081748]
[1734811709315,0.3608,97623.0,97611.0,0.051246]
[1734811709517,0.3608,97623.0,97612.0,0.051245]
[1734811710010,0.051241,97622.0,97608.0,0.06126448]
[1734811710316,0.051241,97622.0,97608.0,0.01001748]
[1734811710501,0.0532,97625.0,97623.0,0.05124]
[1734811710818,0.00052001,97634.0,97616.0,0.051243]
[1734811711019,0.00052001,97634.0,97625.0,0.051239]
[1734811711317,0.051233,97636.0,97625.0,0.051239]
[1734811711908,0.051233,97636.0,97626.0,0.051238]
[1734811712417,0.103129,97644.0,97627.0,0.051238]
[1734811712610,0.05123,97643.0,97627.0,0.051238]
[1734811712816,0.05123,97643.0,97628.0,0.051237]
[1734811713519,0.051231,97641.0,97628.0,0.051237]
[1734811713710,0.051232,97639.0,97628.0,0.051237]
[1734811714817,0.051232,97638.0,97628.0,0.051237]
[1734811715016,0.051232,97638.0,97628.0,0.052237]
[1734811715521,0.051233,97636.0,97628.0,0.052237]
[1734811715823,0.06200143,97644.0,97628.0,0.001]
[1734811716121,0.051233,97636.0,97628.0,0.001]
[1734811717629,0.051233,97636.0,97627.0,0.051237]
[1734811719021,0.051233,97637.0,97627.0,0.051237]
[1734811719413,0.051233,97636.0,97627.0,0.051237]
[1734811720911,0.008102,97640.0,97629.0,0.051237]
[1734811721219,0.059334,97639.0,97630.0,0.15116252]
[1734811721421,0.008102,97638.0,97629.0,0.051237]
[1734811721622,0.051238,97626.0,97625.0,0.3608]
[1734811721818,0.051241,97622.0,97610.0,0.15116252]
[1734811722030,0.008102,97621.0,97610.0,0.15116252]
[1734811722212,0.051241,97622.0,97610.0,0.15116252]
[1734811722213,0.008102,97620.0,97615.0,0.051244]
[1734811722413,0.008102,97619.0,97618.0,0.051243]
[1734811723526,0.00815236,97619.0,97618.0,0.051243]
[1734811723916,0.00815236,97619.0,97618.0,0.052243]
[1734811725125,0.00815236,97619.0,97618.0,0.053243]
[1734811726128,0.00815236,97619.0,97618.0,0.052243]
[1734811726425,0.0081567,97619.0,97614.0,0.3608]
[1734811726727,0.0081567,97618.0,97617.0,0.051243]
[1734811726923,0.00816017,97618.0,97617.0,0.051243]
[1734811727425,0.00816017,97618.0,97614.0,0.3608]
[1734811727613,0.00816017,97617.0,97614.0,0.3608]
[1734811727812,0.00816017,97616.0,97614.0,0.3608]
[1734811728018,0.00816017,97615.0,97614.0,0.412045]
[1734811728920,0.00816017,97615.0,97614.0,0.413045]
[1734811729113,0.0575,97622.0,97614.0,0.413045]
[1734811729313,0.00813664,97621.0,97614.0,0.412045]
[1734811729518,0.051242,97619.0,97614.0,0.3608]
[1734811729725,0.00813664,97618.0,97614.0,0.3608]
[1734811729918,0.00813664,97617.0,97614.0,0.412044]
[1734811730118,0.00813664,97616.0,97614.0,0.412044]
[1734811730320,0.00813664,97615.0,97614.0,0.412044]
[1734811731919,0.3608,97655.0,97641.0,0.051231]
[1734811732119,0.4174,97664.0,97641.0,0.051231]
[1734811732120,0.36132001,97664.0,97641.0,0.412031]
[1734811732319,0.051223,97657.0,97641.0,0.412031]
[1734811732520,0.051223,97655.0,97641.0,0.412031]
[1734811732821,0.15278538,97651.0,97649.0,0.051226]
[1734811734530,0.15116252,97660.0,97649.0,0.001]
[1734811734727,0.051226,97651.0,97649.0,0.001]
[1734811735332,0.0546,97650.0,97649.0,0.001]
[1734811735732,0.0546,97650.0,97641.0,0.24158807]
[1734811735928,0.105826,97650.0,97649.0,0.001]
[1734811736431,0.0546,97650.0,97649.0,0.001]
[1734811743240,0.3608,97654.0,97649.0,0.001]
[1734811743439,0.3608,97654.0,97652.0,0.051225]
[1734811743642,0.0535,97653.0,97649.0,0.001]
[1734811744545,0.104725,97653.0,97652.0,0.001]
[1734811745040,0.104725,97653.0,97633.0,0.24158807]
[1734811745338,0.104725,97653.0,97649.0,0.001]
[1734811745339,0.051226,97650.0,97649.0,0.001]
[1734811745745,0.0535,97653.0,97649.0,0.001]
[1734811746346,0.104725,97653.0,97649.0,0.001]
[1734811746645,0.19665657,97653.0,97649.0,0.001]
[1734811747043,0.19665657,97653.0,97652.0,0.001]
[1734811747441,0.14543157,97653.0,97652.0,0.052225]
[1734811747640,0.45325158,97654.0,97652.0,0.051225]
[1734811747835,0.45273157,97654.0,97652.0,0.051225]
[1734811748244,0.45273157,97654.0,97652.0,0.001]
[1734811749254,0.3608,97654.0,97652.0,0.001]
[1734811749937,0.412024,97654.0,97652.0,0.001]
[1734811751249,0.50395557,97654.0,97652.0,0.001]
[1734811752141,0.45273157,97654.0,97652.0,0.001]
[1734811752449,0.3608,97654.0,97652.0,0.001]
[1734811752745,0.412024,97654.0,97652.0,0.001]
[1734811753939,0.14315557,97654.0,97652.0,0.001]
[1734811757651,0.09193157,97653.0,97652.0,0.001]
[1734811758857,0.051225,97652.0,97640.0,0.3608]
[1734811759044,0.051225,97652.0,97642.0,0.05123]
[1734811759245,0.051225,97651.0,97642.0,0.05123]
[1734811759446,0.3608,97655.0,97642.0,0.05123]
[1734811759653,0.051226,97649.0,97642.0,0.05123]
[1734811760051,0.09200992,97644.0,97642.0,0.05123]
[1734811761041,0.09200992,97644.0,97642.0,0.001]
[1734811761456,0.09200992,97643.0,97642.0,0.001]
[1734811762854,0.12267989,97643.0,97642.0,0.001]
[1734811763948,0.13281756,97643.0,97642.0,0.001]
[1734811764457,0.01013767,97643.0,97642.0,0.001]
[1734811765455,0.051233,97637.0,97624.0,0.36783281]
[1734811765754,0.772839,97625.0,97624.0,0.22528479]
[1734811765949,0.051245,97614.0,97613.0,0.42969828]
[1734811766150,0.412045,97614.0,97613.0,0.42913828]
[1734811767057,0.42018752,97614.0,97613.0,0.42913828]
[1734811767357,0.42018752,97614.0,97613.0,0.43713828]
[1734811767759,0.051247,97610.0,97607.0,0.00052]
[1734811767947,0.00814252,97609.0,97601.0,0.01035637]
[1734811768255,0.00814252,97608.0,97600.0,0.051252]
[1734811768455,0.46237179,97614.0,97613.0,0.004]
[1734811768757,0.46998124,97614.0,97613.0,0.004]
[1734811769154,0.41873624,97614.0,97597.0,0.051253]
[1734811769358,0.09189976,97604.0,97601.0,0.006]
[1734811769543,0.10002922,97604.0,97601.0,0.006]
[1734811770454,0.09189976,97604.0,97601.0,0.006]
[1734811770653,0.09189976,97604.0,97601.0,0.015]
[1734811770854,0.14314976,97605.0,97601.0,0.015]
[1734811771353,0.051251,97602.0,97601.0,0.009]
[1734811772250,0.051251,97602.0,97601.0,0.015]
[1734811773859,0.051251,97602.0,97601.0,0.009]
[1734811774056,0.09189976,97611.0,97601.0,0.015]
[1734811774360,0.09189976,97611.0,97610.0,0.051247]
[1734811774655,0.09189976,97611.0,97610.0,0.412047]
[1734811774858,0.05125,97604.0,97602.0,0.00056]
[1734811775046,0.3608,97603.0,97601.0,0.009]
[1734811775250,0.3608,97603.0,97601.0,0.015]
[1734811776056,0.3608,97603.0,97601.0,0.006]
[1734811776765,0.3608,97603.0,97601.0,0.015]
[1734811776969,0.3608,97603.0,97601.0,0.009]
[1734811777265,0.3608,97603.0,97602.0,0.006]
[1734811777764,0.3608,97603.0,97601.0,0.009]
[1734811778064,0.051251,97602.0,97601.0,0.015]
[1734811778653,0.051251,97602.0,97601.0,0.009]
[1734811779162,0.41205,97603.0,97602.0,0.009]
[1734811779558,0.41205,97603.0,97592.0,0.11971558]
[1734811779861,0.41205,97603.0,97601.0,0.009]
[1734811780254,0.41205,97603.0,97602.0,0.009]
[1734811780754,0.41205,97603.0,97601.0,0.006]
[1734811781058,0.3608,97603.0,97595.0,0.051255]
[1734811781361,0.051251,97602.0,97601.0,0.006]
[1734811783170,0.051251,97602.0,97595.0,0.007]
[1734811783663,0.051251,97602.0,97601.0,0.009]
[1734811784462,0.06131917,97602.0,97601.0,0.015]
[1734811784662,0.06131917,97602.0,97569.0,0.3608]
[1734811784663,0.051258,97588.0,97575.0,0.0574]
[1734811784966,0.051258,97588.0,97581.0,0.06161862]
[1734811785761,0.3608,97591.0,97584.0,0.05126]
[1734811785959,0.051256,97593.0,97587.0,0.01053664]
[1734811786365,0.051256,97592.0,97587.0,0.01053664]
[1734811786564,0.051256,97592.0,97587.0,0.01553664]
[1734811786760,0.09189976,97598.0,97587.0,0.01553664]
[1734811786968,0.01006817,97597.0,97588.0,0.46164685]
[1734811787158,0.09189976,97598.0,97595.0,0.051254]
[1734811787860,0.10196793,97598.0,97595.0,0.051254]
[1734811788063,0.09189976,97598.0,97595.0,0.051254]
[1734811788563,0.01006817,97599.0,97595.0,0.051254]
[1734811788769,0.01006817,97598.0,97595.0,0.051254]
[1734811789067,0.0200552,97600.0,97595.0,0.055254]
[1734811789367,0.0100276,97599.0,97595.0,0.055254]
[1734811789559,0.0100276,97599.0,97595.0,0.051254]
[1734811789754,0.0100276,97598.0,97595.0,0.057254]
[1734811789960,0.0100276,97597.0,97595.0,0.057254]
[1734811790155,0.0100276,97599.0,97595.0,0.053254]
[1734811790360,0.0100276,97598.0,97595.0,0.054254]
[1734811790563,0.0100276,97597.0,97595.0,0.056254]
[1734811790762,0.0100276,97596.0,97595.0,0.056254]
[1734811791865,0.06130645,97596.0,97595.0,0.005]
[1734811792269,0.06942477,97596.0,97595.0,0.006]
[1734811792581,0.05937232,97596.0,97595.0,0.006]
[1734811792871,0.00811832,97596.0,97595.0,0.006]
[1734811793277,0.00811832,97596.0,97595.0,0.007]
[1734811793968,0.00811832,97599.0,97595.0,0.0634]
[1734811794167,0.13256062,97600.0,97598.0,0.412053]
[1734811794471,0.1007713,97600.0,97598.0,0.412053]
[1734811794773,0.0094713,97600.0,97599.0,0.11660211]
[1734811795167,0.0081516,97609.0,97599.0,0.11660211]
[1734811795370,0.09197974,97611.0,97610.0,0.051247]
[1734811795571,0.10013946,97611.0,97610.0,0.051247]
[1734811796368,0.00815972,97611.0,97610.0,0.051247]
[1734811796671,0.01315972,97611.0,97610.0,0.051247]
[1734811797271,0.01215972,97611.0,97610.0,0.051247]
[1734811797482,0.01215972,97611.0,97610.0,0.053247]
[1734811797872,0.004,97611.0,97610.0,0.053247]
[1734811798172,0.00815373,97611.0,97610.0,0.056247]
[1734811798680,0.00815373,97611.0,97610.0,0.054247]
[1734811798975,0.00815373,97611.0,97610.0,0.052247]
[1734811799175,0.00815373,97611.0,97610.0,0.06162828]
[1734811799475,0.09197974,97615.0,97614.0,0.051245]
[1734811800173,0.10013347,97615.0,97614.0,0.051245]
[1734811800370,0.09197974,97615.0,97614.0,0.051245]
[1734811800567,0.00814904,97615.0,97614.0,0.051245]
[1734811800871,0.00814904,97615.0,97610.0,0.01238128]
[1734811801061,0.09197974,97623.0,97610.0,0.01238128]
[1734811801062,0.051246,97612.0,97610.0,0.01238128]
[1734811801273,0.00814904,97611.0,97610.0,0.01138128]
[1734811801577,0.0081464,97613.0,97611.0,0.11762923]
[1734811801761,0.04184698,97623.0,97612.0,0.3608]
[1734811801965,0.04184698,97623.0,97622.0,0.412041]
[1734811802170,0.18245235,97628.0,97627.0,0.051238]
[1734811802472,0.18245235,97628.0,97627.0,0.412038]
[1734811803665,0.05123,97643.0,97641.0,0.05123]
[1734811804578,0.051233,97637.0,97634.0,0.051234]
[1734811804767,0.051233,97637.0,97627.0,0.37168172]
[1734811804967,0.051233,97637.0,97635.0,0.051234]
[1734811805366,0.002,97643.0,97636.0,0.3608]
[1734811805573,0.008,97643.0,97641.0,0.001]
[1734811805879,0.002,97643.0,97641.0,0.05123]
[1734811806072,0.008,97637.0,97636.0,0.412033]
[1734811806778,0.006,97637.0,97636.0,0.412033]
[1734811807377,0.002,97643.0,97636.0,0.3608]
[1734811807675,0.01,97643.0,97642.0,0.05123]
[1734811808075,0.002,97643.0,97642.0,0.05123]
[1734811808277,0.175,97650.0,97648.0,0.051226]
[1734811808779,0.116,97650.0,97648.0,0.051226]
[1734811809085,0.0573,97661.0,97644.0,0.3608]
[1734811809382,0.0599,97658.0,97657.0,0.051222]
[1734811811382,0.0679,97658.0,97657.0,0.052222]
[1734811812073,0.0699,97658.0,97657.0,0.052222]
[1734811814591,0.01,97658.0,97657.0,0.052222]
[1734811816882,0.002,97658.0,97657.0,0.051222]
[1734811817081,0.009,97658.0,97657.0,0.052222]
[1734811817783,0.007,97658.0,97657.0,0.052222]
[1734811817975,0.009,97658.0,97657.0,0.052222]
[1734811819079,0.009,97658.0,97657.0,0.06226402]
[1734811819680,0.1191,97683.0,97682.0,0.051209]
[1734811820584,0.1191,97683.0,97682.0,0.06121975]
[1734811821284,0.00052001,97696.0,97695.0,0.051202]
[1734811821483,0.1512,97700.0,97697.0,0.051201]
[1734811821682,0.0512,97699.0,97697.0,0.051201]
[1734811822190,0.1,97700.0,97692.0,0.3608]
[1734811822191,0.1,97700.0,97699.0,0.0512]
[1734811823482,0.1,97700.0,97695.0,0.002]
[1734811823998,0.1,97700.0,97695.0,0.001]
[1734811824176,0.0512,97699.0,97695.0,0.001]
[1734811824494,0.1,97700.0,97699.0,0.001]
[1734811825192,0.1,97700.0,97698.0,0.051201]
[1734811826690,0.101,97700.0,97699.0,0.001]
[1734811827790,0.101,97700.0,97698.0,0.052201]
[1734811828591,0.101,97700.0,97698.0,0.001]
[1734811828785,0.1522,97700.0,97698.0,0.001]
[1734811829289,0.1512,97700.0,97699.0,0.001]
[1734811829601,0.1522,97700.0,97699.0,0.001]
[1734811830094,0.101,97700.0,97699.0,0.001]
[1734811830490,0.101,97700.0,97698.0,0.001]
[1734811830793,0.1522,97700.0,97698.0,0.001]
[1734811830991,0.1522,97700.0,97699.0,0.001]
[1734811831695,0.16042572,97700.0,97699.0,0.001]
[1734811832183,0.10922572,97700.0,97699.0,0.001]
[1734811832685,0.10922572,97700.0,97698.0,0.001]
[1734811832896,0.00822572,97699.0,97698.0,0.001]
[1734811833285,0.00822572,97699.0,97691.0,0.0612518]
[1734811833486,0.00822572,97698.0,97691.0,0.0612518]
[1734811833683,0.0082145,97697.0,97691.0,0.0612518]
[1734811833989,0.0082145,97696.0,97691.0,0.0612518]
[1734811834196,0.101,97700.0,97679.0,0.00052]
[1734811834197,0.051207,97686.0,97679.0,0.00052]
[1734811834381,0.3608,97684.0,97679.0,0.01044373]
[1734811834588,0.3608,97684.0,97676.0,0.051212]
[1734811835190,0.3608,97684.0,97669.0,0.3608]
[1734811835400,0.3608,97684.0,97669.0,0.3710282]
[1734811835586,0.3608,97684.0,97677.0,0.051211]
[1734811836694,0.3618,97684.0,97677.0,0.051211]
[1734811837195,0.37001413,97684.0,97677.0,0.051211]
[1734811837392,0.3618,97684.0,97677.0,0.051211]
[1734811837701,0.00821413,97683.0,97670.0,0.051215]
[1734811837912,0.051211,97678.0,97670.0,0.051215]
[1734811838200,0.15097668,97680.0,97669.0,0.0102282]
[1734811838401,0.051214,97672.0,97663.0,0.051219]
[1734811839099,0.051216,97670.0,97656.0,0.06171599]
[1734811839391,0.15097668,97673.0,97656.0,0.01049299]
[1734811839602,0.051217,97667.0,97657.0,0.051222]
[1734811840583,0.3608,97665.0,97657.0,0.051222]
[1734811840792,0.00821176,97664.0,97657.0,0.051222]
[1734811840984,0.051221,97661.0,97651.0,0.06151683]
[1734811841289,0.00821176,97660.0,97651.0,0.01029183]
[1734811841488,0.00821176,97659.0,97656.0,0.051222]
[1734811841697,0.00821176,97658.0,97656.0,0.051222]
[1734811841900,0.00821402,97657.0,97656.0,0.051222]
[1734811842100,0.00821402,97657.0,97656.0,0.412022]
[1734811842694,0.00821402,97657.0,97656.0,0.414022]
[1734811842889,0.00821402,97664.0,97659.0,0.051221]
[1734811843088,0.00821402,97664.0,97656.0,0.3628]
[1734811843399,0.00821402,97663.0,97656.0,0.3688]
[1734811843586,0.3608,97665.0,97656.0,0.3688]
[1734811843898,0.36901402,97665.0,97660.0,0.05122]
[1734811844098,0.3608,97665.0,97660.0,0.05122]
[1734811844405,0.3690118,97665.0,97658.0,0.051221]
[1734811844598,0.0082118,97664.0,97659.0,0.051221]
[1734811844901,0.0082118,97664.0,97660.0,0.05122]
[1734811845306,0.0082118,97664.0,97661.0,0.05122]
[1734811845794,0.3608,97665.0,97661.0,0.05122]
[1734811846003,0.0082118,97664.0,97661.0,0.05122]
[1734811846303,0.3608,97665.0,97661.0,0.05122]
[1734811846999,0.3690118,97665.0,97661.0,0.05122]
[1734811847300,0.3608,97665.0,97661.0,0.05122]
[1734811847603,0.3618,97665.0,97661.0,0.05122]
[1734811847797,0.00821273,97664.0,97656.0,0.3608]
[1734811848098,0.00821273,97664.0,97649.0,0.0582]
[1734811848099,0.051223,97656.0,97649.0,0.0582]
[1734811848290,0.00821273,97655.0,97649.0,0.0582]
[1734811848603,0.00821273,97654.0,97648.0,0.412027]
[1734811848893,0.00821273,97654.0,97648.0,0.42218981]
[1734811849200,0.051224,97653.0,97648.0,0.37096281]
[1734811849597,0.01002546,97652.0,97648.0,0.37096281]
[1734811849796,0.01002546,97651.0,97649.0,0.060226]
[1734811850014,0.051222,97657.0,97649.0,0.060226]
[1734811850015,0.01002546,97650.0,97649.0,0.060226]
[1734811850297,0.01822627,97650.0,97649.0,0.051226]
[1734811850516,0.01002537,97650.0,97649.0,0.051226]
[1734811850804,0.01002537,97650.0,97648.0,0.38396281]
[1734811850993,0.15097668,97659.0,97648.0,0.38396281]
[1734811850994,0.01002537,97649.0,97648.0,0.43570981]
[1734811851193,0.01003009,97649.0,97648.0,0.43118981]
[1734811851904,0.01003009,97655.0,97649.0,0.051226]
[1734811852102,0.01003009,97654.0,97649.0,0.051226]
[1734811852405,0.01003919,97653.0,97649.0,0.051226]
[1734811852696,0.01003919,97657.0,97649.0,0.059226]
[1734811852901,0.15097668,97659.0,97649.0,0.008]
[1734811852902,0.01003919,97656.0,97649.0,0.008]
[1734811853094,0.051224,97653.0,97649.0,0.008]
[1734811853398,0.01003919,97652.0,97649.0,0.008]
[1734811853609,0.051227,97649.0,97640.0,0.07051034]
[1734811853799,0.15097668,97650.0,97640.0,0.07051034]
[1734811853998,0.01003919,97649.0,97643.0,0.051229]
[1734811854195,0.15097668,97650.0,97643.0,0.051229]
[1734811854395,0.01003919,97649.0,97643.0,0.051229]
[1734811854597,0.15097668,97650.0,97643.0,0.051229]
[1734811855303,0.01003919,97649.0,97643.0,0.051229]
[1734811855504,0.01003919,97648.0,97643.0,0.051229]